[Event "Chessable Masters - Torneo preliminare"]
[White "Erigaisi, Arjun"]
[Black "Dreev, Aleksey"]
[WhiteFideId "35009192"]
[BlackFideId "4100107"]
[WhiteElo "2685"]
[BlackElo "2557"]
[Result "1-0"]
[Round "4"]
[TimeControl "600+2"]
[Date "2023.03.13"]
[WhiteClock "0:03:06"]
[BlackClock "0:00:03"]

1. d4 {[%clk 0:10:01]}  d5 {[%clk 0:09:56]} 2. Nc3 {[%clk 0:10:02]}  c6 {[%clk 0:09:29]} 3. Bf4 {[%clk 0:10:00]}  Qb6 {[%clk 0:09:21]} 4. Rb1 {[%clk 0:09:43]}  Nf6 {[%clk 0:09:12]} 5. e3 {[%clk 0:09:42]}  Bf5 {[%clk 0:09:06]} 6. Bd3 {[%clk 0:09:29]}  e6 {[%clk 0:09:01]} 7. Nf3 {[%clk 0:09:21]}  Nbd7 {[%clk 0:08:53]} 8. Bxf5 {[%clk 0:09:14]}  exf5 {[%clk 0:08:54]} 9. O-O {[%clk 0:09:16]}  Be7 {[%clk 0:08:09]} 10. Qd3 {[%clk 0:09:17]}  g6 {[%clk 0:07:51]} 11. Ne2 {[%clk 0:09:18]}  O-O {[%clk 0:07:31]} 12. b3 {[%clk 0:09:19]}  a5 {[%clk 0:06:39]} 13. c4 {[%clk 0:09:07]}  Ne4 {[%clk 0:05:54]} 14. Ne5 {[%clk 0:09:05]}  Nxe5 {[%clk 0:05:43]} 15. Bxe5 {[%clk 0:09:07]}  Qd8 {[%clk 0:05:34]} 16. f3 {[%clk 0:09:00]}  Nf6 {[%clk 0:05:03]} 17. Nc3 {[%clk 0:08:39]}  Bb4 {[%clk 0:04:45]} 18. Na4 {[%clk 0:08:25]}  Be7 {[%clk 0:03:50]} 19. cxd5 {[%clk 0:08:09]}  Nxd5 {[%clk 0:03:43]} 20. e4 {[%clk 0:08:10]}  Nb4 {[%clk 0:03:43]} 21. Qd2 {[%clk 0:07:53]}  Bf6 {[%clk 0:03:10]} 22. Bxf6 {[%clk 0:07:28]}  Qxf6 {[%clk 0:03:12]} 23. a3 {[%clk 0:07:29]}  Na6 {[%clk 0:03:11]} 24. Rbd1 {[%clk 0:07:24]}  Rad8 {[%clk 0:02:58]} 25. e5 {[%clk 0:05:55]}  Qe7 {[%clk 0:02:58]} 26. Qc1 {[%clk 0:05:54]}  Nc7 {[%clk 0:02:47]} 27. Qc5 {[%clk 0:05:05]}  Rfe8 {[%clk 0:02:35]} 28. Qxa5 {[%clk 0:04:52]}  Nb5 {[%clk 0:02:18]} 29. Qb6 {[%clk 0:04:47]}  Qxa3 {[%clk 0:01:56]} 30. Nc5 {[%clk 0:04:11]}  Nxd4 {[%clk 0:01:51]} 31. Kh1 {[%clk 0:04:11]}  Rd5 {[%clk 0:01:30]} 32. b4 {[%clk 0:04:06]}  Rdxe5 {[%clk 0:01:08]} 33. Nd7 {[%clk 0:03:45]}  Ne2 {[%clk 0:00:22]} 34. Nxe5 {[%clk 0:03:34]}  Rxe5 {[%clk 0:00:23]} 35. Qxb7 {[%clk 0:03:34]}  Kg7 {[%clk 0:00:19]} 36. Qc7 {[%clk 0:03:18]}  Re6 {[%clk 0:00:05]} 37. Rd7 {[%clk 0:03:14]}  Rf6 {[%clk 0:00:07]} 38. Qe5 {[%clk 0:03:09]}  Qa2 {[%clk 0:00:03]} 39. Rd6 {[%clk 0:03:06]} 1-0


[Site "Internet"]

[Event "Chessable Masters - Torneo preliminare"]
[White "Gukesh, D"]
[Black "Mareco, Sandro"]
[WhiteFideId "46616543"]
[BlackFideId "112275"]
[WhiteElo "2629"]
[BlackElo "2541"]
[Result "1-0"]
[Round "4"]
[TimeControl "600+2"]
[Date "2023.03.13"]
[WhiteClock "0:04:23"]
[BlackClock "0:05:35"]

1. d4 {[%clk 0:10:01]}  Nf6 {[%clk 0:10:00]} 2. c4 {[%clk 0:10:01]}  e6 {[%clk 0:10:01]} 3. Nf3 {[%clk 0:10:02]}  d5 {[%clk 0:10:03]} 4. Nc3 {[%clk 0:10:02]}  Bb4 {[%clk 0:10:02]} 5. e3 {[%clk 0:10:00]}  O-O {[%clk 0:10:01]} 6. Bd2 {[%clk 0:10:00]}  Re8 {[%clk 0:10:00]} 7. Rc1 {[%clk 0:09:46]}  a5 {[%clk 0:09:49]} 8. Bd3 {[%clk 0:09:35]}  Nbd7 {[%clk 0:09:43]} 9. O-O {[%clk 0:09:25]}  c6 {[%clk 0:09:39]} 10. a3 {[%clk 0:09:06]}  Bf8 {[%clk 0:09:36]} 11. cxd5 {[%clk 0:08:17]}  exd5 {[%clk 0:09:30]} 12. Qc2 {[%clk 0:08:17]}  Bd6 {[%clk 0:08:57]} 13. Rfe1 {[%clk 0:08:14]}  Nf8 {[%clk 0:08:58]} 14. h3 {[%clk 0:08:13]}  Bd7 {[%clk 0:08:33]} 15. e4 {[%clk 0:07:05]}  dxe4 {[%clk 0:08:28]} 16. Nxe4 {[%clk 0:07:07]}  Nxe4 {[%clk 0:08:29]} 17. Bxe4 {[%clk 0:07:09]}  h6 {[%clk 0:08:07]} 18. d5 {[%clk 0:07:00]}  c5 {[%clk 0:08:00]} 19. a4 {[%clk 0:06:42]}  b5 {[%clk 0:07:08]} 20. axb5 {[%clk 0:06:39]}  Bxb5 {[%clk 0:07:09]} 21. Bc3 {[%clk 0:06:36]}  a4 {[%clk 0:07:06]} 22. Nd2 {[%clk 0:06:23]}  Qh4 {[%clk 0:06:59]} 23. Bf3 {[%clk 0:06:14]}  Ng6 {[%clk 0:05:46]} 24. Ne4 {[%clk 0:06:11]}  Bf8 {[%clk 0:05:47]} 25. d6 {[%clk 0:04:35]}  Ne5 {[%clk 0:05:41]} 26. Bxe5 {[%clk 0:04:28]}  Rxe5 {[%clk 0:05:41]} 27. Nc3 {[%clk 0:04:24]}  Rxe1+ {[%clk 0:05:34]} 28. Rxe1 {[%clk 0:04:26]}  Rb8 {[%clk 0:05:34]} 29. Nxb5 {[%clk 0:04:22]}  Rxb5 {[%clk 0:05:35]} 30. d7 {[%clk 0:04:23]} 1-0


[Site "Internet"]

[Event "Chessable Masters - Torneo preliminare"]
[White "Yakubboev, Nodirbek"]
[Black "Liang, Awonder"]
[WhiteFideId "14203987"]
[BlackFideId "2056437"]
[WhiteElo "2577"]
[BlackElo "2508"]
[Result "1-0"]
[Round "4"]
[TimeControl "600+2"]
[Date "2023.03.13"]
[WhiteClock "0:08:06"]
[BlackClock "0:04:12"]

1. c4 {[%clk 0:09:59]}  e5 {[%clk 0:09:56]} 2. Nc3 {[%clk 0:10:00]}  Nf6 {[%clk 0:09:53]} 3. Nf3 {[%clk 0:10:01]}  Nc6 {[%clk 0:09:53]} 4. e4 {[%clk 0:10:02]}  Bb4 {[%clk 0:09:52]} 5. d3 {[%clk 0:10:02]}  d6 {[%clk 0:09:52]} 6. a3 {[%clk 0:10:03]}  Ba5 {[%clk 0:09:31]} 7. b4 {[%clk 0:10:00]}  Bb6 {[%clk 0:09:32]} 8. Be3 {[%clk 0:10:01]}  Bg4 {[%clk 0:09:22]} 9. Be2 {[%clk 0:10:01]}  O-O {[%clk 0:09:23]} 10. O-O {[%clk 0:10:00]}  Bxf3 {[%clk 0:09:19]} 11. Bxf3 {[%clk 0:10:02]}  Nd4 {[%clk 0:09:20]} 12. Na4 {[%clk 0:10:03]}  Nxf3+ {[%clk 0:09:18]} 13. Qxf3 {[%clk 0:10:05]}  Bxe3 {[%clk 0:09:19]} 14. Qxe3 {[%clk 0:10:05]}  Nh5 {[%clk 0:09:16]} 15. g3 {[%clk 0:10:04]}  Qd7 {[%clk 0:08:57]} 16. Nc3 {[%clk 0:09:55]}  f5 {[%clk 0:08:59]} 17. Qf3 {[%clk 0:09:50]}  g6 {[%clk 0:08:47]} 18. exf5 {[%clk 0:09:49]}  c6 {[%clk 0:08:48]} 19. Qd1 {[%clk 0:09:09]}  Rxf5 {[%clk 0:07:49]} 20. g4 {[%clk 0:09:06]}  Rg5 {[%clk 0:04:24]} 21. f3 {[%clk 0:09:05]}  Nf4 {[%clk 0:04:25]} 22. h4 {[%clk 0:08:04]}  Rh5 {[%clk 0:04:15]} 23. gxh5 {[%clk 0:08:05]}  Qh3 {[%clk 0:04:12]} 24. Ra2 {[%clk 0:08:06]} 1-0


[Site "Internet"]

[Event "Chessable Masters - Torneo preliminare"]
[White "Bluebaum, Matthias"]
[Black "Vachier-Lagrave, Maxime"]
[WhiteFideId "24651516"]
[BlackFideId "623539"]
[WhiteElo "2601"]
[BlackElo "2762"]
[Result "1/2-1/2"]
[Round "4"]
[TimeControl "600+2"]
[Date "2023.03.13"]
[WhiteClock "0:09:59"]
[BlackClock "0:06:33"]

1. d4 {[%clk 0:10:01]}  Nf6 {[%clk 0:10:00]} 2. c4 {[%clk 0:10:03]}  g6 {[%clk 0:10:00]} 3. Nc3 {[%clk 0:10:04]}  d5 {[%clk 0:10:02]} 4. cxd5 {[%clk 0:10:06]}  Nxd5 {[%clk 0:10:03]} 5. e4 {[%clk 0:10:07]}  Nxc3 {[%clk 0:10:04]} 6. bxc3 {[%clk 0:10:09]}  Bg7 {[%clk 0:10:06]} 7. Nf3 {[%clk 0:10:11]}  c5 {[%clk 0:10:05]} 8. Bb5+ {[%clk 0:10:12]}  Nc6 {[%clk 0:10:07]} 9. O-O {[%clk 0:10:13]}  O-O {[%clk 0:10:05]} 10. Bxc6 {[%clk 0:10:14]}  bxc6 {[%clk 0:10:06]} 11. Qc2 {[%clk 0:10:16]}  cxd4 {[%clk 0:10:08]} 12. cxd4 {[%clk 0:10:18]}  Bg4 {[%clk 0:10:08]} 13. Ne5 {[%clk 0:10:20]}  Qxd4 {[%clk 0:10:09]} 14. Bb2 {[%clk 0:10:21]}  Qb6 {[%clk 0:10:08]} 15. Rab1 {[%clk 0:10:23]}  Bxe5 {[%clk 0:10:08]} 16. Bxe5 {[%clk 0:10:25]}  Qa5 {[%clk 0:10:09]} 17. Bc3 {[%clk 0:10:26]}  Qc5 {[%clk 0:10:08]} 18. Qb2 {[%clk 0:10:27]}  a5 {[%clk 0:09:48]} 19. Bd4 {[%clk 0:10:27]}  Qd6 {[%clk 0:09:37]} 20. Qc3 {[%clk 0:10:27]}  Be2 {[%clk 0:09:13]} 21. Rfe1 {[%clk 0:10:26]}  Bb5 {[%clk 0:09:13]} 22. a4 {[%clk 0:10:18]}  Bxa4 {[%clk 0:09:13]} 23. Bh8 {[%clk 0:10:19]}  f6 {[%clk 0:09:14]} 24. e5 {[%clk 0:10:21]}  Qd8 {[%clk 0:09:12]} 25. exf6 {[%clk 0:10:21]}  exf6 {[%clk 0:09:11]} 26. Rb7 {[%clk 0:10:23]}  Rf7 {[%clk 0:08:32]} 27. Rxf7 {[%clk 0:10:21]}  Kxf7 {[%clk 0:08:34]} 28. h4 {[%clk 0:10:21]}  Qxh8 {[%clk 0:06:29]} 29. Qc4+ {[%clk 0:10:16]}  Kf8 {[%clk 0:06:30]} 30. Qc5+ {[%clk 0:09:56]}  Kg8 {[%clk 0:06:30]} 31. Qc4+ {[%clk 0:09:56]}  Kf8 {[%clk 0:06:31]} 32. Qc5+ {[%clk 0:09:58]}  Kg8 {[%clk 0:06:32]} 33. Qc4+ {[%clk 0:09:59]}  Kf8 {[%clk 0:06:33]} 1/2-1/2


[Site "Internet"]

[Event "Chessable Masters - Torneo preliminare"]
[White "Aronian, Levon"]
[Black "Tabatabaei, M. Amin"]
[WhiteFideId "13300474"]
[BlackFideId "12521213"]
[WhiteElo "2720"]
[BlackElo "2558"]
[Result "1-0"]
[Round "4"]
[TimeControl "600+2"]
[Date "2023.03.13"]
[WhiteClock "0:06:09"]
[BlackClock "0:01:29"]

1. e4 {[%clk 0:10:01]}  e5 {[%clk 0:09:59]} 2. Nf3 {[%clk 0:10:02]}  c6 {[%clk 0:10:01]} 3. Nxe5 {[%clk 0:09:53]}  Qe7 {[%clk 0:09:59]} 4. d4 {[%clk 0:09:51]}  d6 {[%clk 0:09:59]} 5. Nf3 {[%clk 0:09:51]}  Qxe4+ {[%clk 0:09:57]} 6. Be3 {[%clk 0:09:47]}  Nf6 {[%clk 0:09:53]} 7. Nc3 {[%clk 0:09:36]}  Qg6 {[%clk 0:07:39]} 8. h3 {[%clk 0:09:24]}  Be7 {[%clk 0:07:20]} 9. g4 {[%clk 0:09:06]}  Ne4 {[%clk 0:06:55]} 10. Nxe4 {[%clk 0:08:57]}  Qxe4 {[%clk 0:06:57]} 11. c4 {[%clk 0:08:58]}  O-O {[%clk 0:06:39]} 12. Bd3 {[%clk 0:08:58]}  Qe6 {[%clk 0:06:40]} 13. d5 {[%clk 0:08:59]}  Qd7 {[%clk 0:05:09]} 14. Bc2 {[%clk 0:08:35]}  Qc7 {[%clk 0:04:54]} 15. Qd3 {[%clk 0:08:29]}  f5 {[%clk 0:04:46]} 16. O-O-O {[%clk 0:08:12]}  Na6 {[%clk 0:04:45]} 17. a3 {[%clk 0:08:12]}  Bf6 {[%clk 0:03:51]} 18. g5 {[%clk 0:07:55]}  Be7 {[%clk 0:03:48]} 19. Rhe1 {[%clk 0:07:47]}  g6 {[%clk 0:03:15]} 20. Bd4 {[%clk 0:07:41]}  Rf7 {[%clk 0:03:16]} 21. Bc3 {[%clk 0:07:33]}  c5 {[%clk 0:02:59]} 22. h4 {[%clk 0:07:03]}  f4 {[%clk 0:02:56]} 23. Nd4 {[%clk 0:06:55]}  Bg4 {[%clk 0:02:30]} 24. Ne6 {[%clk 0:06:26]}  Qd7 {[%clk 0:02:26]} 25. f3 {[%clk 0:06:25]}  Bh5 {[%clk 0:02:14]} 26. Re4 {[%clk 0:06:17]}  b5 {[%clk 0:02:08]} 27. cxb5 {[%clk 0:06:11]}  Nc7 {[%clk 0:02:08]} 28. a4 {[%clk 0:06:10]}  c4 {[%clk 0:01:29]} 29. Qd4 {[%clk 0:06:09]} 1-0


[Site "Internet"]

[Event "Chessable Masters - Torneo preliminare"]
[White "Lazavik, Denis"]
[Black "Makarian, Rudik"]
[WhiteFideId "13515110"]
[BlackFideId "44105681"]
[WhiteElo "2488"]
[BlackElo "2462"]
[Result "1-0"]
[Round "4"]
[TimeControl "600+2"]
[Date "2023.03.13"]
[WhiteClock "0:00:43"]
[BlackClock "0:00:06"]

1. d4 {[%clk 0:09:59]}  Nf6 {[%clk 0:10:01]} 2. c4 {[%clk 0:10:00]}  e6 {[%clk 0:10:02]} 3. Nf3 {[%clk 0:09:57]}  b6 {[%clk 0:09:49]} 4. g3 {[%clk 0:09:57]}  c6 {[%clk 0:09:50]} 5. Bg2 {[%clk 0:09:51]}  d5 {[%clk 0:09:52]} 6. O-O {[%clk 0:09:49]}  Be7 {[%clk 0:09:53]} 7. b3 {[%clk 0:09:44]}  O-O {[%clk 0:09:54]} 8. Qc2 {[%clk 0:09:42]}  Nbd7 {[%clk 0:09:52]} 9. Rd1 {[%clk 0:09:42]}  Bb7 {[%clk 0:09:41]} 10. Nc3 {[%clk 0:09:41]}  Ba6 {[%clk 0:09:41]} 11. Bb2 {[%clk 0:09:01]}  Rc8 {[%clk 0:09:30]} 12. e4 {[%clk 0:08:44]}  dxc4 {[%clk 0:09:29]} 13. Nd2 {[%clk 0:08:43]}  b5 {[%clk 0:08:50]} 14. bxc4 {[%clk 0:08:34]}  bxc4 {[%clk 0:08:52]} 15. Na4 {[%clk 0:06:56]}  c5 {[%clk 0:05:23]} 16. d5 {[%clk 0:06:50]}  exd5 {[%clk 0:05:22]} 17. exd5 {[%clk 0:06:52]}  Ne8 {[%clk 0:04:26]} 18. Nxc4 {[%clk 0:06:27]}  Bxc4 {[%clk 0:04:22]} 19. Qxc4 {[%clk 0:06:28]}  Nd6 {[%clk 0:04:21]} 20. Qa6 {[%clk 0:06:06]}  Nb6 {[%clk 0:03:54]} 21. Rac1 {[%clk 0:05:46]}  Nxa4 {[%clk 0:03:37]} 22. Qxa4 {[%clk 0:05:48]}  Bf6 {[%clk 0:03:13]} 23. Ba3 {[%clk 0:04:39]}  Qb6 {[%clk 0:02:03]} 24. Bh3 {[%clk 0:04:07]}  Nb5 {[%clk 0:00:54]} 25. Bxc8 {[%clk 0:04:05]}  Rxc8 {[%clk 0:00:56]} 26. d6 {[%clk 0:02:37]}  Nxd6 {[%clk 0:00:53]} 27. Rb1 {[%clk 0:02:11]}  Qc7 {[%clk 0:00:37]} 28. Qa6 {[%clk 0:02:09]}  Rd8 {[%clk 0:00:29]} 29. Rbc1 {[%clk 0:02:00]}  Ne4 {[%clk 0:00:24]} 30. Rxd8+ {[%clk 0:01:56]}  Qxd8 {[%clk 0:00:25]} 31. Qe2 {[%clk 0:01:43]}  Ng5 {[%clk 0:00:12]} 32. Bxc5 {[%clk 0:01:36]}  g6 {[%clk 0:00:11]} 33. Be3 {[%clk 0:01:33]}  Ne6 {[%clk 0:00:10]} 34. Bxa7 {[%clk 0:01:32]}  Qa8 {[%clk 0:00:10]} 35. Be3 {[%clk 0:01:32]}  h5 {[%clk 0:00:10]} 36. h4 {[%clk 0:01:32]}  Qe4 {[%clk 0:00:10]} 37. Qc2 {[%clk 0:01:15]}  Qf3 {[%clk 0:00:09]} 38. Qc6 {[%clk 0:01:15]}  Qg4 {[%clk 0:00:09]} 39. Kg2 {[%clk 0:01:05]}  Qf5 {[%clk 0:00:09]} 40. a4 {[%clk 0:01:01]}  g5 {[%clk 0:00:09]} 41. hxg5 {[%clk 0:01:00]}  Bxg5 {[%clk 0:00:11]} 42. Qf3 {[%clk 0:00:58]}  Qg6 {[%clk 0:00:08]} 43. a5 {[%clk 0:00:54]}  Bxe3 {[%clk 0:00:04]} 44. Qxe3 {[%clk 0:00:56]}  h4 {[%clk 0:00:05]} 45. a6 {[%clk 0:00:56]}  Qf5 {[%clk 0:00:05]} 46. a7 {[%clk 0:00:52]}  Qd5+ {[%clk 0:00:07]} 47. Kh2 {[%clk 0:00:53]}  Kg7 {[%clk 0:00:06]} 48. gxh4 {[%clk 0:00:53]}  Kh7 {[%clk 0:00:05]} 49. Rg1 {[%clk 0:00:50]}  Nd4 {[%clk 0:00:06]} 50. a8=Q {[%clk 0:00:43]} 1-0


[Site "Internet"]

[Event "Chessable Masters - Torneo preliminare"]
[White "Svidler, Peter"]
[Black "Mitrabha, Guha"]
[WhiteFideId "4102142"]
[BlackFideId "5057000"]
[WhiteElo "2752"]
[BlackElo "2401"]
[Result "1/2-1/2"]
[Round "4"]
[TimeControl "600+2"]
[Date "2023.03.13"]
[WhiteClock "0:00:46"]
[BlackClock "0:02:00"]

1. e4 {[%clk 0:10:01]}  c6 {[%clk 0:09:52]} 2. d3 {[%clk 0:09:50]}  d5 {[%clk 0:09:53]} 3. Nf3 {[%clk 0:09:51]}  Nd7 {[%clk 0:09:53]} 4. exd5 {[%clk 0:09:46]}  cxd5 {[%clk 0:09:54]} 5. d4 {[%clk 0:09:48]}  e6 {[%clk 0:09:31]} 6. Bf4 {[%clk 0:09:16]}  Ngf6 {[%clk 0:09:20]} 7. Nbd2 {[%clk 0:09:09]}  Be7 {[%clk 0:09:19]} 8. Bd3 {[%clk 0:09:07]}  b6 {[%clk 0:09:15]} 9. O-O {[%clk 0:08:58]}  O-O {[%clk 0:09:08]} 10. h3 {[%clk 0:08:38]}  a5 {[%clk 0:09:09]} 11. Qe2 {[%clk 0:08:30]}  Nb8 {[%clk 0:08:52]} 12. Ne5 {[%clk 0:08:19]}  Ba6 {[%clk 0:08:27]} 13. c4 {[%clk 0:08:01]}  dxc4 {[%clk 0:08:14]} 14. Ndxc4 {[%clk 0:08:01]}  Nd5 {[%clk 0:08:02]} 15. Bg3 {[%clk 0:07:58]}  Bb7 {[%clk 0:07:46]} 16. Rac1 {[%clk 0:07:15]}  Nd7 {[%clk 0:07:19]} 17. Nxd7 {[%clk 0:07:04]}  Qxd7 {[%clk 0:07:19]} 18. Ne5 {[%clk 0:06:56]}  Qd8 {[%clk 0:07:17]} 19. a3 {[%clk 0:05:39]}  Rc8 {[%clk 0:07:14]} 20. h4 {[%clk 0:04:57]}  Nf6 {[%clk 0:07:01]} 21. Ba6 {[%clk 0:04:23]}  Qd5 {[%clk 0:06:48]} 22. Bxb7 {[%clk 0:04:18]}  Qxb7 {[%clk 0:06:50]} 23. Qb5 {[%clk 0:04:12]}  Bd6 {[%clk 0:06:28]} 24. Nd7 {[%clk 0:03:20]}  Nxd7 {[%clk 0:05:40]} 25. Bxd6 {[%clk 0:03:20]}  Rxc1 {[%clk 0:05:41]} 26. Rxc1 {[%clk 0:03:20]}  Rc8 {[%clk 0:05:42]} 27. Rxc8+ {[%clk 0:03:18]}  Qxc8 {[%clk 0:05:44]} 28. d5 {[%clk 0:03:15]}  exd5 {[%clk 0:05:35]} 29. Qxd5 {[%clk 0:03:16]}  Nf6 {[%clk 0:05:32]} 30. Qd4 {[%clk 0:03:13]}  Ng4 {[%clk 0:05:20]} 31. Bf4 {[%clk 0:03:10]}  Qe8 {[%clk 0:04:52]} 32. Bd2 {[%clk 0:03:01]}  h5 {[%clk 0:04:35]} 33. f3 {[%clk 0:02:59]}  Nf6 {[%clk 0:04:29]} 34. Qxb6 {[%clk 0:02:57]}  a4 {[%clk 0:04:30]} 35. Qd4 {[%clk 0:02:56]}  Qb5 {[%clk 0:04:24]} 36. Bc3 {[%clk 0:02:55]}  Kh7 {[%clk 0:04:20]} 37. Kf2 {[%clk 0:02:54]}  Qb3 {[%clk 0:04:19]} 38. Qc5 {[%clk 0:02:45]}  Nd5 {[%clk 0:04:16]} 39. Bd4 {[%clk 0:02:13]}  Kg6 {[%clk 0:03:55]} 40. Ke1 {[%clk 0:02:08]}  f6 {[%clk 0:03:54]} 41. Kd2 {[%clk 0:02:08]}  Nf4 {[%clk 0:03:41]} 42. Qc2+ {[%clk 0:01:17]}  Qxc2+ {[%clk 0:03:42]} 43. Kxc2 {[%clk 0:01:19]}  Nxg2 {[%clk 0:03:44]} 44. Bf2 {[%clk 0:01:19]}  Kf5 {[%clk 0:03:37]} 45. b3 {[%clk 0:01:17]}  g5 {[%clk 0:03:21]} 46. bxa4 {[%clk 0:01:12]}  Ke6 {[%clk 0:03:04]} 47. hxg5 {[%clk 0:01:07]}  fxg5 {[%clk 0:03:05]} 48. Kd3 {[%clk 0:01:03]}  Kd5 {[%clk 0:03:04]} 49. a5 {[%clk 0:01:04]}  Nf4+ {[%clk 0:02:37]} 50. Ke3 {[%clk 0:01:04]}  Kc6 {[%clk 0:02:37]} 51. Ke4 {[%clk 0:01:03]}  Kb7 {[%clk 0:02:21]} 52. Kf5 {[%clk 0:00:50]}  Nh3 {[%clk 0:01:58]} 53. Be3 {[%clk 0:00:48]}  g4 {[%clk 0:01:56]} 54. fxg4 {[%clk 0:00:45]}  hxg4 {[%clk 0:01:58]} 55. Kxg4 {[%clk 0:00:47]}  Ka6 {[%clk 0:01:59]} 56. Kxh3 {[%clk 0:00:45]}  Kxa5 {[%clk 0:01:59]} 57. a4 {[%clk 0:00:46]}  Kxa4 {[%clk 0:02:00]} 1/2-1/2


[Site "Internet"]

[Event "Chessable Masters - Torneo preliminare"]
[White "Praggnanandhaa, R"]
[Black "Pap, Gyula"]
[WhiteFideId "25059530"]
[BlackFideId "725323"]
[WhiteElo "2587"]
[BlackElo "2563"]
[Result "1-0"]
[Round "4"]
[TimeControl "600+2"]
[Date "2023.03.13"]
[WhiteClock "0:01:03"]
[BlackClock "0:00:06"]

1. Nf3 {[%clk 0:10:01]}  d5 {[%clk 0:09:59]} 2. g3 {[%clk 0:10:01]}  Nd7 {[%clk 0:09:59]} 3. d4 {[%clk 0:09:57]}  Nb6 {[%clk 0:09:56]} 4. Bg2 {[%clk 0:09:58]}  Bf5 {[%clk 0:09:51]} 5. Nc3 {[%clk 0:09:58]}  e6 {[%clk 0:09:24]} 6. Nh4 {[%clk 0:09:58]}  Nf6 {[%clk 0:09:25]} 7. Nxf5 {[%clk 0:09:31]}  exf5 {[%clk 0:09:27]} 8. a4 {[%clk 0:09:31]}  a5 {[%clk 0:09:21]} 9. Qd3 {[%clk 0:09:32]}  Qd7 {[%clk 0:08:36]} 10. b3 {[%clk 0:09:22]}  Bb4 {[%clk 0:08:02]} 11. O-O {[%clk 0:09:21]}  O-O {[%clk 0:07:59]} 12. Na2 {[%clk 0:09:07]}  Be7 {[%clk 0:07:38]} 13. Bf4 {[%clk 0:08:56]}  Ne4 {[%clk 0:07:06]} 14. c4 {[%clk 0:08:25]}  dxc4 {[%clk 0:06:21]} 15. bxc4 {[%clk 0:08:24]}  Nxa4 {[%clk 0:06:23]} 16. Bxe4 {[%clk 0:08:01]}  fxe4 {[%clk 0:06:24]} 17. Qxe4 {[%clk 0:08:01]}  c6 {[%clk 0:06:16]} 18. c5 {[%clk 0:07:31]}  b5 {[%clk 0:05:54]} 19. cxb6 {[%clk 0:07:32]}  Nxb6 {[%clk 0:05:55]} 20. Rfc1 {[%clk 0:07:33]}  Nd5 {[%clk 0:05:46]} 21. Bd2 {[%clk 0:07:32]}  Nf6 {[%clk 0:03:59]} 22. Qd3 {[%clk 0:07:10]}  Rfd8 {[%clk 0:03:59]} 23. Rc4 {[%clk 0:07:02]}  c5 {[%clk 0:03:53]} 24. Nc1 {[%clk 0:05:26]}  a4 {[%clk 0:03:08]} 25. dxc5 {[%clk 0:04:05]}  Qe6 {[%clk 0:01:13]} 26. Rd4 {[%clk 0:03:47]}  Rxd4 {[%clk 0:01:05]} 27. Qxd4 {[%clk 0:03:47]}  Ne4 {[%clk 0:00:24]} 28. Be3 {[%clk 0:01:38]}  a3 {[%clk 0:00:23]} 29. Qb4 {[%clk 0:01:29]}  Rc8 {[%clk 0:00:03]} 30. Nb3 {[%clk 0:01:07]}  f6 {[%clk 0:00:03]} 31. Rxa3 {[%clk 0:01:07]}  Rc7 {[%clk 0:00:03]} 32. Ra4 {[%clk 0:01:06]}  f5 {[%clk 0:00:03]} 33. Ra8+ {[%clk 0:00:59]}  Kf7 {[%clk 0:00:04]} 34. Qb8 {[%clk 0:01:00]}  Rd7 {[%clk 0:00:03]} 35. Qg8+ {[%clk 0:00:59]}  Kf6 {[%clk 0:00:04]} 36. Bd4+ {[%clk 0:00:59]}  Rxd4 {[%clk 0:00:02]} 37. Qxe6+ {[%clk 0:01:00]}  Kxe6 {[%clk 0:00:04]} 38. Nxd4+ {[%clk 0:01:02]}  Kd5 {[%clk 0:00:06]} 39. Nxf5 {[%clk 0:01:03]} 1-0


[Site "Internet"]

[Event "Chessable Masters - Torneo preliminare"]
[White "Kevlishvili, Robby"]
[Black "Alonso Rosell, Alvar"]
[WhiteFideId "1040634"]
[BlackFideId "2270544"]
[WhiteElo "2577"]
[BlackElo "2473"]
[Result "0-1"]
[Round "4"]
[TimeControl "600+2"]
[Date "2023.03.13"]
[WhiteClock "0:04:19"]
[BlackClock "0:01:30"]

1. e4 {[%clk 0:10:01]}  e5 {[%clk 0:09:57]} 2. Nf3 {[%clk 0:10:02]}  Nc6 {[%clk 0:09:59]} 3. Bb5 {[%clk 0:10:03]}  a6 {[%clk 0:10:00]} 4. Ba4 {[%clk 0:10:04]}  d6 {[%clk 0:10:01]} 5. c3 {[%clk 0:10:03]}  Bd7 {[%clk 0:10:02]} 6. d4 {[%clk 0:10:02]}  g6 {[%clk 0:10:03]} 7. O-O {[%clk 0:10:02]}  Bg7 {[%clk 0:10:03]} 8. Bg5 {[%clk 0:10:03]}  Nf6 {[%clk 0:10:04]} 9. Nbd2 {[%clk 0:09:50]}  b5 {[%clk 0:09:33]} 10. Bb3 {[%clk 0:09:47]}  h6 {[%clk 0:09:33]} 11. Bh4 {[%clk 0:09:24]}  O-O {[%clk 0:08:24]} 12. dxe5 {[%clk 0:09:11]}  dxe5 {[%clk 0:08:13]} 13. Qe2 {[%clk 0:09:10]}  Qe8 {[%clk 0:07:58]} 14. Bxf6 {[%clk 0:08:59]}  Bxf6 {[%clk 0:07:59]} 15. Rfd1 {[%clk 0:09:01]}  Na5 {[%clk 0:07:48]} 16. Bc2 {[%clk 0:09:01]}  Nb7 {[%clk 0:07:48]} 17. b4 {[%clk 0:08:30]}  a5 {[%clk 0:07:23]} 18. a3 {[%clk 0:08:29]}  Qe7 {[%clk 0:07:16]} 19. Bd3 {[%clk 0:08:25]}  c6 {[%clk 0:07:09]} 20. Rab1 {[%clk 0:08:19]}  Rfd8 {[%clk 0:07:01]} 21. c4 {[%clk 0:07:59]}  axb4 {[%clk 0:06:28]} 22. axb4 {[%clk 0:07:59]}  bxc4 {[%clk 0:06:05]} 23. Nxc4 {[%clk 0:07:58]}  Bg4 {[%clk 0:06:02]} 24. h3 {[%clk 0:07:51]}  Bxf3 {[%clk 0:06:02]} 25. Qxf3 {[%clk 0:07:49]}  Rd4 {[%clk 0:06:01]} 26. Qe2 {[%clk 0:07:43]}  Rad8 {[%clk 0:05:54]} 27. Na5 {[%clk 0:07:09]}  Qc7 {[%clk 0:05:52]} 28. Nxb7 {[%clk 0:06:49]}  Qxb7 {[%clk 0:05:54]} 29. Bc4 {[%clk 0:05:49]}  Rxd1+ {[%clk 0:05:42]} 30. Rxd1 {[%clk 0:05:51]}  Qxb4 {[%clk 0:05:38]} 31. Rxd8+ {[%clk 0:05:51]}  Bxd8 {[%clk 0:05:38]} 32. g3 {[%clk 0:05:41]}  h5 {[%clk 0:05:27]} 33. h4 {[%clk 0:05:41]}  Bb6 {[%clk 0:05:25]} 34. Kg2 {[%clk 0:05:42]}  Bd4 {[%clk 0:05:15]} 35. Qa2 {[%clk 0:05:42]}  Qb7 {[%clk 0:05:10]} 36. Qe2 {[%clk 0:05:05]}  Kg7 {[%clk 0:04:53]} 37. Qf3 {[%clk 0:05:03]}  Qa7 {[%clk 0:04:46]} 38. Qe2 {[%clk 0:04:56]}  Qa4 {[%clk 0:03:37]} 39. Ba2 {[%clk 0:04:52]}  Bc5 {[%clk 0:03:12]} 40. Bc4 {[%clk 0:04:47]}  Qb4 {[%clk 0:02:46]} 41. Qd3 {[%clk 0:04:40]}  Bd4 {[%clk 0:02:03]} 42. Qe2 {[%clk 0:04:41]}  Qc3 {[%clk 0:01:32]} 43. Bb3 {[%clk 0:04:19]}  Qxb3 {[%clk 0:01:30]} 0-1


[Site "Internet"]